bitfinex/quotes_ETHUSD_20250426
["timestamp","ask_amount","ask_price","bid_price","bid_amount"]
[1745630443417,5.192,1805.7,1805.6,5.53832521]
[1745630443649,0.1,1805.9,1805.8,5.53771181]
[1745630443949,0.1,1805.9,1805.8,6.44817282]
[1745630444851,5.192,1806.4,1806.3,5.53617892]
[1745630447622,5.192,1806.4,1806.1,5.53654867]
[1745630447840,5.192,1806.4,1806.2,5.53624197]
[1745630448038,5.192,1806.4,1806.1,5.53655263]
[1745630448221,0.7515,1806.3,1806.1,5.53678515]
[1745630448421,0.7515,1806.3,1806.1,5.53662033]
[1745630448646,0.7515,1806.3,1806.2,5.53648543]
[1745630449522,5.192,1806.4,1806.3,5.53617892]
[1745630450161,16.619,1806.6,1806.2,5.53648543]
[1745630450365,5.9695,1806.7,1806.4,5.53571208]
[1745630450520,11.50448944,1806.7,1806.3,5.53591708]
[1745630451254,5.53535934,1806.6,1806.2,11.07268875]
[1745630451453,11.50448944,1806.7,1806.3,5.53605902]
[1745630451656,11.50448944,1806.7,1806.3,5.53598656]
[1745630452156,11.50448944,1806.7,1806.4,5.53585926]
[1745630452356,5.9695,1806.7,1806.4,5.53566375]
[1745630452562,5.218,1806.6,1806.5,5.53532592]
[1745630452775,0.7515,1806.7,1806.6,5.5352596]
[1745630453057,0.8515,1806.9,1806.7,5.53484615]
[1745630453266,5.217,1806.8,1806.7,5.53484615]
[1745630453652,0.1,1806.9,1806.8,5.53464688]
[1745630453853,0.1,1806.9,1806.8,6.0881315]
[1745630456065,0.1,1806.9,1806.8,5.53464688]
[1745630458883,0.20518557,1806.9,1806.8,5.53464688]
[1745630459681,0.1,1806.9,1806.8,5.53464688]
[1745630460169,0.21355862,1806.9,1806.8,5.53464688]
[1745630460477,0.1,1806.9,1806.7,5.5348277]
[1745630460662,0.1,1806.9,1806.8,5.53464688]
[1745630461487,11.67484644,1806.9,1806.5,6.03]
[1745630461691,6.1404,1806.9,1806.6,5.53508762]
[1745630461850,6.1404,1806.9,1806.6,5.53505753]
[1745630462049,6.1404,1806.9,1806.8,5.53464688]
[1745630462274,5.316,1806.9,1806.8,5.53464688]
[1745630462465,0.1,1806.9,1806.8,5.53464688]
[1745630463380,0.1,1806.9,1806.8,6.08864688]
[1745630463693,0.1,1806.9,1806.8,5.53464688]
[1745630463991,0.1,1806.9,1806.8,6.64159432]
[1745630465976,0.1,1806.9,1806.8,1.10694744]
[1745630466182,0.1,1806.9,1806.7,6.08882756]
[1745630466382,0.1,1806.9,1806.7,0.554]
[1745630466583,0.1,1806.9,1806.6,5.5352474]
[1745630466772,0.1,1806.9,1806.0,6.8398]
[1745630466773,0.8057,1806.6,1806.0,6.8398]
[1745630466973,6.0217,1806.6,1806.3,5.53605905]
[1745630467396,6.0217,1806.6,1806.3,5.53594993]
[1745630467564,8.69054677,1806.9,1806.8,23.36813148]
[1745630467765,13.90654677,1806.9,1806.8,23.36813148]
[1745630469486,0.1,1806.9,1806.8,23.36813148]
[1745630469812,5.316,1806.9,1806.8,25.70494463]
[1745630470099,5.316,1806.9,1806.8,23.36813148]
[1745630470603,0.1,1806.9,1806.8,28.90277836]
[1745630473320,0.1,1806.9,1806.8,29.65447836]
[1745630476435,1e-08,1806.9,1806.8,30.07452914]
[1745630476638,1e-08,1806.9,1806.8,39.66546521]
[1745630476839,1e-08,1806.9,1806.8,42.76667018]
[1745630478254,1e-08,1806.9,1806.8,43.31667018]
[1745630478458,0.5,1807.2,1806.8,43.31667018]
[1745630478459,1e-08,1807.2,1807.1,6.36122807]
[1745630479359,1e-08,1807.2,1807.1,6.46241624]
[1745630479533,1e-08,1807.2,1807.1,7.96204864]
[1745630479942,1e-08,1807.2,1807.1,16.99204864]
[1745630482874,1e-08,1807.2,1807.1,13.16454864]
[1745630483073,1e-08,1807.2,1807.1,11.66491624]
[1745630484367,1e-08,1807.2,1807.1,0.10118817]
[1745630484671,0.7744,1807.1,1806.8,23.36813148]
[1745630484874,0.7744,1806.9,1806.8,23.36813148]
[1745630485970,0.59554,1806.9,1806.8,23.36813148]
[1745630486180,6.90428058,1806.9,1806.8,23.36813148]
[1745630487439,0.7752,1806.7,1805.9,5.53726681]
[1745630487642,0.7752,1806.3,1805.9,5.53726681]
[1745630487950,5.181,1806.2,1805.6,0.8143]
[1745630488136,0.7752,1806.1,1805.7,5.53789723]
[1745630488538,0.7752,1806.1,1805.7,5.53778353]
[1745630488740,6.31200275,1806.1,1805.7,5.53778353]
[1745630488951,5.53722598,1806.0,1805.6,5.53811859]
[1745630489166,6.31221125,1806.1,1805.6,5.53811859]
[1745630489352,6.31281056,1805.9,1805.5,5.53855597]
[1745630489552,6.31281056,1805.9,1805.4,5.53875788]
[1745630489774,5.183,1805.8,1805.5,5.53860743]
[1745630489951,5.183,1805.8,1805.7,5.53801849]
[1745630490143,5.183,1805.8,1805.6,5.538235]
[1745630490346,5.183,1805.8,1805.5,5.53846156]
[1745630490977,0.7752,1805.6,1805.3,5.53923191]
[1745630491742,0.7752,1805.6,1805.3,5.53900709]
[1745630491942,0.7752,1805.6,1805.4,5.53878839]
[1745630492773,0.7752,1805.6,1805.3,5.53914514]
[1745630492966,6.31360262,1805.6,1805.2,5.53943706]
[1745630493166,6.31360262,1805.6,1805.3,5.53923249]
[1745630493167,0.7752,1805.6,1805.3,5.53923249]
[1745630493366,0.7752,1805.6,1805.4,5.53872089]
[1745630493555,0.7752,1805.6,1805.1,11.66962197]
[1745630493880,0.7752,1805.6,1805.4,5.53882726]
[1745630494256,0.7752,1805.6,1805.3,5.53905473]
[1745630495180,0.7752,1805.6,1805.5,5.53863195]
[1745630495546,0.7752,1805.6,1805.4,5.53878239]
[1745630495748,5.9529,1805.8,1805.6,5.53821564]
[1745630495958,5.9529,1805.8,1805.7,5.53801849]
[1745630496376,0.7699,1805.8,1805.7,5.53801849]
[1745630496679,5.184,1805.8,1805.7,5.53801849]
[1745630499249,5.184,1805.8,1805.6,6.09194685]
[1745630499487,5.184,1805.8,1805.7,5.53801849]
[1745630500052,5.184,1805.8,1805.6,5.53813827]
[1745630500252,5.184,1805.8,1805.5,5.5384632]
[1745630500504,5.184,1805.8,1805.6,5.53813838]
[1745630500801,5.53712706,1806.0,1805.6,5.53812389]
[1745630501115,11.49191413,1806.1,1805.7,5.53785236]
[1745630501265,18.2377595,1806.1,1805.7,5.53785236]
[1745630501464,0.7699,1805.7,1805.5,5.53855612]
[1745630501665,0.7699,1805.7,1805.4,5.53880631]
[1745630501880,5.9549,1805.7,1805.4,5.53880631]
[1745630502207,11.49309162,1805.7,1805.3,5.53906075]
[1745630502401,5.9549,1805.7,1805.4,5.53880524]
[1745630503024,0.7699,1805.3,1805.1,6.13]
[1745630503174,0.7699,1805.3,1805.1,0.1]
[1745630503502,5.9549,1805.3,1805.2,5.5395524]
[1745630503813,5.185,1805.3,1805.2,5.5395524]
[1745630503999,5.185,1805.3,1805.1,0.1]
[1745630504000,5.185,1805.3,1805.1,5.63969131]
[1745630504600,5.185,1805.3,1805.2,5.5395524]
[1745630505304,5.185,1805.3,1805.1,5.63967996]
[1745630505501,5.185,1805.3,1805.2,5.5395524]
[1745630507399,0.7699,1805.5,1805.4,5.53893873]
[1745630507806,5.186,1805.6,1805.5,5.53863195]
[1745630509701,5.186,1805.6,1805.4,5.53893873]
[1745630509869,5.186,1805.6,1805.4,5.53873396]
[1745630510203,5.186,1805.6,1805.5,5.53863195]
[1745630512709,5.186,1805.6,1805.4,5.53878983]
[1745630514383,5.78724,1805.6,1805.3,11.07809751]
[1745630514600,5.78724,1805.6,1805.4,5.53893267]
[1745630516912,5.78724,1805.6,1805.3,5.53924326]
[1745630517204,5.78724,1805.6,1805.2,5.539366]
[1745630517407,0.8085,1805.5,1805.2,5.539366]
[1745630517610,2.02192567,1805.5,1805.2,5.539366]
[1745630518082,2.02192567,1805.5,1805.3,5.53914615]
[1745630518282,0.8085,1805.5,1805.3,5.53914615]
[1745630519007,0.8085,1805.5,1805.2,5.5393882]
[1745630519209,6.34713341,1805.5,1805.1,0.1]
[1745630519413,6.34727012,1805.5,1805.1,5.63973583]
[1745630519598,0.63472701,1805.4,1805.1,0.1]
[1745630519803,6.3473122,1805.5,1805.1,5.63967778]
[1745630520102,6.3473122,1805.5,1805.1,5.6396694]
[1745630520493,0.8085,1805.5,1805.1,5.6396694]
[1745630520704,0.8085,1805.5,1805.2,5.53942899]
[1745630520912,0.8085,1805.5,1805.2,5.53934876]
[1745630521083,2.02191731,1805.5,1805.2,5.53934876]
[1745630521416,7.56055878,1805.5,1805.1,5.63965056]
[1745630521786,7.56055878,1805.5,1805.2,5.53953547]
[1745630522416,7.56055878,1805.5,1805.1,5.63967411]
[1745630522716,2.02191731,1805.5,1805.3,5.53918714]
[1745630522906,2.02191731,1805.5,1805.2,5.53937799]
[1745630523100,2.02191731,1805.5,1805.1,0.1]
[1745630523101,2.02191731,1805.5,1805.1,5.63969369]
[1745630523406,5.53894923,1805.4,1805.1,0.1]
[1745630523605,6.89437246,1805.3,1805.1,0.1]
[1745630523911,10.6975524,1805.2,1805.1,0.1]
[1745630524089,0.8012,1805.5,1805.4,5.53893873]
[1745630524291,5.158,1805.5,1805.4,5.53893873]
[1745630525512,5.158,1805.5,1805.3,5.539072]
[1745630525916,5.158,1805.5,1805.4,5.53893873]
[1745630529819,5.158,1805.5,1805.3,5.539072]
[1745630529986,5.6738,1805.5,1805.3,5.53902176]
[1745630530189,5.6738,1805.5,1805.3,11.07802848]
[1745630530493,5.158,1805.5,1805.4,5.53893873]
[1745630531621,5.158,1805.8,1805.7,5.53801849]
[1745630534230,5.158,1805.8,1805.5,5.53848141]
[1745630534231,0.811,1805.7,1805.5,5.53848141]
[1745630534427,1.4079,1805.7,1805.2,0.7512]
[1745630534612,1.4079,1805.7,1805.5,5.53850404]
[1745630535239,7.56638838,1805.7,1805.3,5.53907098]
[1745630535444,7.56638838,1805.7,1805.3,11.07809082]
[1745630535741,2.02821779,1805.7,1805.4,5.5389365]
[1745630536046,5.158,1805.6,1805.4,5.5389365]
[1745630536338,5.87662178,1805.6,1805.4,5.5389365]
[1745630538342,5.82662178,1805.6,1805.4,5.5389365]
[1745630539641,5.77662178,1805.6,1805.4,5.5389365]
[1745630539945,5.53884429,1805.5,1805.1,5.63970688]
[1745630540142,0.7665,1805.3,1805.1,5.63970688]
[1745630540343,10.5975524,1805.2,1805.1,0.1]
[1745630540734,11.3640524,1805.2,1805.1,0.1]
[1745630541937,11.3140524,1805.2,1805.1,0.1]
[1745630544052,14.3140524,1805.2,1805.1,0.1]
[1745630544239,16.42347566,1805.2,1805.1,0.1]
[1745630545481,7.88392326,1805.2,1805.1,0.1]
[1745630545619,0.7665,1805.2,1805.1,0.1]
[1745630545824,5.8245,1805.2,1805.1,0.1]
[1745630546867,5.059,1805.4,1805.2,5.53944688]
[1745630547032,5.059,1805.4,1805.3,5.53924555]
[1745630550063,5.059,1805.4,1805.2,5.53940566]
[1745630550272,0.8006,1805.3,1805.1,0.1]
[1745630552243,0.7506,1805.3,1805.1,0.1]
[1745630552742,6.28997016,1805.3,1805.1,0.1]
[1745630553071,1.37091779,1805.3,1805.1,0.1]
[1745630553229,0.7506,1805.3,1805.1,0.1]
[1745630553427,0.7506,1805.3,1805.1,5.63973259]
[1745630554862,0.6006,1805.3,1805.1,0.1]
[1745630555159,5.059,1805.4,1805.1,5.63975775]
[1745630555765,5.059,1805.4,1805.1,0.1]
[1745630555956,12.27369124,1805.4,1805.1,0.1]
[1745630556433,6.73469787,1805.4,1805.1,5.63978099]
[1745630556636,6.73469787,1805.4,1805.1,5.6397085]
[1745630556834,5.059,1805.4,1805.2,5.53953065]
[1745630557573,5.059,1805.4,1805.3,5.53924555]
[1745630558432,5.059,1805.4,1805.2,5.53935528]
[1745630558744,5.059,1805.4,1805.2,11.07867494]
[1745630559373,5.059,1805.4,1805.3,5.53924555]
[1745630563528,5.059,1805.4,1805.3,6.64710207]
[1745630565144,6.96770119,1805.9,1805.4,6.33855172]
[1745630565145,0.8099,1805.9,1805.4,6.33855172]
[1745630565340,5.058,1806.0,1805.9,5.53713208]
[1745630566652,5.058,1806.0,1805.9,6.33693208]
[1745630567639,5.058,1806.4,1806.3,5.53606501]
[1745630570596,16.616,1806.8,1806.3,5.53606501]
[1745630570751,8.53345341,1807.2,1806.8,5.53444045]
[1745630570752,5.7767,1807.1,1806.8,5.53444045]
[1745630570953,6.90772354,1807.1,1806.8,5.53444045]
[1745630571475,5.53415082,1807.0,1806.4,6.36400335]
[1745630571786,5.53406036,1807.0,1806.5,11.07067082]
[1745630571987,0.62031779,1806.9,1806.4,0.8284]
[1745630572291,6.29464688,1806.8,1806.4,5.53585616]
[1745630572491,6.29464688,1806.8,1806.3,5.53605618]
[1745630572492,4.996,1806.7,1806.3,5.53602048]
[1745630573063,10.53108994,1806.7,1806.3,5.53602048]
[1745630573261,16.06630916,1806.7,1806.3,5.53602048]
[1745630573462,5.53528777,1806.6,1806.2,11.90461438]
[1745630573657,10.53113563,1806.7,1806.1,5.53663316]
[1745630573852,5.53528696,1806.6,1806.2,5.53626314]
[1745630574052,6.29557406,1806.5,1806.0,6.36894143]
[1745630574363,5.53604601,1806.4,1805.9,5.53731575]
[1745630574552,4.995,1806.3,1806.0,5.53689644]
[1745630575590,4.995,1806.3,1806.0,11.07377839]
[1745630575881,4.995,1806.3,1805.8,0.832]
[1745630575882,4.995,1806.3,1806.1,5.53677966]
[1745630576088,4.995,1806.3,1806.0,5.53690335]
[1745630576286,4.995,1806.3,1806.1,5.5367681]
[1745630576583,4.995,1806.3,1806.1,0.832]
[1745630576776,4.995,1806.3,1806.0,5.53689305]
[1745630576981,4.995,1806.3,1806.1,5.53677747]
[1745630577377,4.995,1806.3,1806.1,1.10736705]
[1745630577581,4.995,1806.6,1806.5,5.53544001]
[1745630577869,4.995,1806.6,1806.2,6.35714249]
[1745630578050,4.995,1806.6,1806.4,5.53584778]
[1745630578489,10.53029291,1806.6,1806.2,6.35712232]
[1745630578785,4.995,1806.6,1806.3,5.53611142]
[1745630579085,5.53575141,1806.5,1806.1,5.53657452]
[1745630579382,6.32105141,1806.5,1806.1,5.53657452]
[1745630579574,0.7853,1806.5,1806.2,5.53626724]
[1745630579778,0.7853,1806.5,1806.2,11.07253348]
[1745630579955,0.7853,1806.5,1806.2,5.53626624]
[1745630580653,4.995,1806.5,1806.3,5.53592058]
[1745630581255,4.995,1806.5,1806.2,5.53633317]
[1745630581456,10.53057384,1806.5,1806.2,5.53646918]
[1745630581754,4.995,1806.5,1806.2,5.53646918]
[1745630582187,4.995,1806.5,1806.3,5.53614564]
[1745630582685,5.4945,1806.5,1806.1,5.53669486]
[1745630582858,11.03030694,1806.5,1806.1,5.53669486]
[1745630583058,16.56614122,1806.5,1806.1,5.53669486]
[1745630583586,0.8109,1806.4,1805.8,6.34434204]
[1745630583767,6.34691608,1806.4,1806.0,5.5370755]
[1745630584092,5.53627787,1806.3,1805.9,5.53725475]
[1745630585271,5.53627787,1806.3,1805.9,11.07443714]
[1745630585591,5.53627787,1806.3,1805.9,5.53718239]
[1745630585784,5.53627787,1806.3,1806.0,5.5370827]
[1745630585994,8.14670651,1806.4,1806.0,5.5370827]
[1745630586386,13.68284199,1806.4,1806.0,5.5370827]
[1745630586590,8.14670651,1806.4,1806.0,5.5370827]
[1745630586789,5.53673953,1806.2,1805.8,6.34438207]
[1745630586956,4.995,1806.1,1805.8,0.8068]
[1745630587357,4.995,1806.1,1805.9,5.5372595]
[1745630588982,4.995,1806.1,1805.9,5.53723622]
[1745630589496,4.995,1806.1,1805.9,5.53740106]
[1745630589993,10.53179416,1806.1,1805.8,5.53748565]
[1745630590196,4.995,1806.1,1805.9,5.53737985]
[1745630590558,4.995,1806.1,1805.9,5.53718032]
[1745630592195,4.995,1806.1,1806.0,5.53709856]
[1745630592512,0.4995,1806.5,1806.4,5.53576642]
[1745630592513,4.995,1806.5,1806.4,5.53576642]
[1745630592661,0.8176,1806.6,1806.4,5.53576642]
[1745630592999,16.608,1806.7,1806.6,5.5352596]
[1745630593000,21.603,1806.7,1806.6,5.5352596]
[1745630593201,4.995,1807.0,1806.8,5.53440539]
[1745630593417,4.995,1807.0,1806.9,5.53434058]
[1745630593881,1e-08,1807.2,1807.1,5.53372807]
[1745630594403,1e-08,1807.2,1807.0,5.53384163]
[1745630594597,1e-08,1807.2,1806.9,5.5342875]
[1745630594804,0.49950001,1807.2,1806.9,5.5342875]
[1745630595320,1e-08,1807.2,1806.8,0.62031779]
[1745630595497,1e-08,1807.2,1807.1,5.53372807]
[1745630597622,0.10336619,1807.2,1807.1,5.53372807]
[1745630597931,0.10336619,1807.2,1807.1,6.35682807]
[1745630598598,1e-08,1807.2,1807.1,6.35682807]
[1745630598783,1e-08,1807.2,1807.1,7.60793491]
[1745630608654,1e-08,1807.2,1807.1,8.16193491]
[1745630611354,1e-08,1807.2,1807.1,7.60793491]
[1745630611522,5.53414838,1807.0,1806.5,11.56536581]
[1745630611721,0.10598227,1806.9,1806.7,5.53479411]
[1745630611950,5.53420325,1807.0,1806.5,5.53526136]
[1745630612123,6.78129469,1807.0,1806.6,5.53503952]
[1745630612330,0.10598227,1806.9,1806.6,5.53503952]
[1745630612849,0.10598227,1806.9,1806.6,5.5352134]
[1745630613033,0.10598227,1806.9,1806.5,11.07060451]
[1745630613244,0.10598227,1806.9,1806.7,0.00135663]
[1745630613443,0.10598227,1806.9,1806.6,5.53523604]
[1745630613619,0.10598227,1806.9,1806.8,5.53464688]
[1745630613952,0.7825,1807.1,1806.9,5.53425812]
[1745630615451,4.98200001,1807.2,1807.0,5.5337304]
[1745630615951,4.98200001,1807.2,1806.9,5.5342057]
[1745630616330,4.98200001,1807.2,1807.0,5.53385871]
[1745630616652,4.98200001,1807.2,1806.9,5.53407687]
[1745630616854,5.55830001,1807.2,1806.6,0.8165]
[1745630617051,5.55830001,1807.2,1806.6,5.53501772]
[1745630617052,0.781,1807.1,1806.6,5.53501772]
[1745630617355,6.31483502,1807.1,1806.7,5.53487062]
[1745630617532,0.781,1807.1,1806.5,5.5354047]
[1745630617727,0.7844,1806.8,1806.4,5.53573028]
[1745630617957,6.31912934,1806.8,1806.4,5.53573028]
[1745630618251,11.30212934,1806.8,1806.4,5.53573028]
[1745630618453,11.30212934,1806.8,1806.6,5.53515577]
[1745630618454,5.7674,1806.8,1806.6,5.53515577]
[1745630618838,5.7674,1806.8,1806.4,6.64296392]
[1745630619043,5.7674,1806.8,1806.3,5.53603546]
[1745630619044,5.53499365,1806.7,1806.3,5.53603546]
[1745630619224,11.30219217,1806.8,1806.4,5.5358536]
[1745630619425,5.7674,1806.8,1806.6,5.53504394]
[1745630619627,0.7844,1806.5,1806.0,0.8213]
[1745630619822,5.53620747,1806.3,1805.8,0.8213]
[1745630620054,0.7844,1806.1,1805.7,5.53785414]
[1745630620258,0.7844,1806.1,1805.6,0.8213]
[1745630620423,5.53801849,1805.7,1805.6,0.8213]
[1745630620623,6.32133851,1806.1,1805.6,5.53830982]
[1745630620826,4.983,1806.0,1805.5,5.53851195]
[1745630621027,4.983,1806.0,1805.4,6.36009036]
[1745630621028,10.52025285,1806.0,1805.4,0.8213]
[1745630621229,5.53753746,1805.9,1805.5,1.7]
[1745630621464,10.52023955,1806.0,1805.5,1.7]
[1745630621764,10.52023955,1806.0,1805.5,7.23860322]
[1745630621980,12.26761229,1806.0,1805.5,7.23860322]
[1745630622265,4.983,1806.0,1805.6,5.53810076]
[1745630623268,10.52010329,1806.0,1805.6,5.53810076]
[1745630623433,10.52010329,1806.0,1805.5,5.53845421]
[1745630623627,10.52010329,1806.0,1805.4,5.5387808]
[1745630623628,0.8175,1805.9,1805.4,5.5387808]
[1745630623971,0.8175,1805.9,1805.5,11.07684764]
[1745630624133,0.8175,1805.9,1805.6,5.53807137]
[1745630625566,0.8175,1805.9,1805.7,5.53796441]
[1745630625753,0.8175,1805.9,1805.6,5.53814443]
[1745630625942,0.8175,1805.9,1805.7,5.53799136]
[1745630626444,0.8175,1805.9,1805.6,5.53813324]
[1745630627031,1.95126725,1805.9,1805.6,5.53813324]
[1745630627683,0.8175,1805.9,1805.5,0.62031779]
[1745630627843,4.983,1806.0,1805.9,5.53740517]
[1745630628256,4.983,1806.0,1805.8,5.53752816]
[1745630628454,4.983,1806.0,1805.8,5.5374843]
[1745630628768,4.983,1806.0,1805.9,5.53740517]
[1745630629466,4.983,1806.0,1805.8,5.53750267]
[1745630629648,4.983,1806.0,1805.9,5.53740517]
[1745630631751,4.983,1806.0,1805.8,5.5376372]
[1745630632071,4.983,1806.0,1805.9,5.53740517]
[1745630634240,4.983,1806.0,1805.9,6.64490941]
[1745630634569,16.608,1806.3,1806.1,5.53654978]
[1745630634773,21.555,1806.3,1806.2,5.53648543]
[1745630635169,21.555,1806.3,1805.8,5.53752651]
[1745630635368,29.88216204,1806.3,1805.9,5.53728086]
[1745630636174,29.88221243,1806.3,1805.9,5.53737872]
[1745630636396,0.7802,1806.2,1805.9,5.53737872]
[1745630637075,0.7802,1806.2,1805.9,5.53719593]
[1745630637277,0.7802,1806.2,1806.0,5.53697667]
[1745630637573,0.7802,1806.2,1805.9,5.53719593]
[1745630637879,0.7802,1806.2,1806.0,5.53700137]
[1745630638366,0.7802,1806.2,1805.9,11.07439314]
[1745630638877,0.7802,1806.2,1805.9,5.53719593]
[1745630639174,0.7802,1806.2,1806.0,5.53680616]
[1745630639478,4.947,1806.7,1806.3,5.53607931]
[1745630640082,4.947,1806.7,1806.2,5.53636358]
[1745630640083,5.53556601,1806.5,1805.7,6.36745374]
[1745630640256,5.53727888,1806.0,1805.7,0.8297]
[1745630640458,6.33157888,1806.0,1805.6,5.53816524]
[1745630640642,0.7943,1806.0,1805.7,5.53792797]
[1745630640847,4.947,1806.1,1805.9,5.53716062]
[1745630641382,4.947,1806.1,1805.6,5.53815792]
[1745630641553,4.947,1806.1,1805.7,5.53786443]
[1745630641554,10.48379475,1806.1,1805.7,5.53786443]
[1745630641754,5.53711667,1806.0,1805.6,11.07619301]
[1745630642246,10.48391075,1806.1,1805.7,5.53800919]
[1745630642446,6.62848656,1806.1,1805.8,5.53767022]
[1745630642656,12.16529979,1806.1,1805.7,5.53782021]
[1745630643577,12.57779832,1806.1,1805.7,5.53782021]
[1745630644478,5.53715444,1806.0,1805.6,5.53810978]
[1745630644672,5.53715444,1806.0,1805.7,5.53799679]
[1745630644976,12.5779652,1806.1,1805.7,5.53799679]
[1745630645192,18.11501235,1806.1,1805.7,5.53799679]
[1745630645695,12.5779652,1806.1,1805.7,5.53799679]
[1745630646199,18.11505904,1806.1,1805.7,5.53799679]
[1745630646593,12.5779652,1806.1,1805.7,5.53799679]
[1745630647195,6.79490231,1806.0,1805.7,5.53799679]
[1745630647697,6.79490231,1806.0,1805.6,5.53818372]
[1745630647989,0.7796,1805.9,1805.6,5.53818372]
[1745630648192,5.53817965,1805.7,1805.3,1.91975652]
[1745630648392,4.947,1805.7,1805.4,5.53889524]
[1745630648572,4.947,1805.7,1805.5,5.53862091]
[1745630650078,4.947,1805.7,1805.5,5.53860511]
[1745630650998,0.7796,1805.6,1805.2,5.53948157]
[1745630651195,11.85672583,1805.6,1805.1,5.63961954]
[1745630651396,6.31809415,1805.6,1805.1,5.63961954]
[1745630651600,6.31809415,1805.6,1805.2,5.53952848]
[1745630651796,8.04789095,1805.6,1805.2,5.53952848]
[1745630652403,5.53894135,1805.4,1805.1,0.1]
[1745630652699,4.947,1805.3,1805.1,0.1]
[1745630653076,11.26595415,1805.3,1805.1,0.1]
[1745630653382,5.7266,1805.3,1805.1,0.1]
[1745630655316,4.947,1805.3,1805.1,0.1]
[1745630656607,6.3191524,1805.2,1805.1,0.1]
[1745630659027,0.7796,1805.2,1805.1,0.1]
[1745630662526,6.3191524,1805.2,1805.1,0.1]
[1745630662723,6.96557019,1805.2,1805.1,0.1]
[1745630663222,6.3452524,1805.2,1805.1,0.1]
[1745630663421,8.23640413,1805.2,1805.1,0.1]
[1745630663604,17.34640413,1805.2,1805.1,0.1]
[1745630664137,9.34617315,1804.9,1804.8,0.5]
[1745630664427,9.34617315,1804.9,1803.9,5.54342198]
[1745630664428,6.34812353,1804.3,1803.9,5.54342198]
[1745630664725,4.902,1804.2,1803.8,6.30277768]
[1745630664902,4.902,1804.2,1803.9,5.54353953]
[1745630665729,10.44462276,1804.2,1803.8,6.30280662]
[1745630666021,4.902,1804.2,1803.8,6.302655]
[1745630666205,4.902,1804.2,1803.9,5.54350119]
[1745630666606,4.902,1804.2,1803.9,5.54331254]
[1745630666806,4.902,1804.2,1803.8,0.759]
[1745630667020,10.44462276,1804.2,1803.8,6.30271693]
[1745630667318,10.44462276,1804.2,1803.7,5.54401186]
[1745630667319,12.12388852,1804.2,1803.6,6.36664906]
[1745630667499,12.12388852,1804.2,1803.7,5.54404031]
[1745630667500,12.74420631,1804.2,1803.7,5.54404031]
[1745630667830,12.74420631,1804.2,1803.8,5.54369778]
[1745630669213,12.74420631,1804.2,1803.6,0.8222]
[1745630669214,12.74420631,1804.2,1803.6,6.36642922]
[1745630669416,12.74420631,1804.2,1803.8,5.54374602]
[1745630669809,13.16396691,1804.2,1803.8,5.54374602]
[1745630670525,7.00102636,1804.2,1803.9,5.54353412]
[1745630670731,7.00102636,1804.2,1803.8,5.54361342]
[1745630670907,12.54364912,1804.2,1803.8,5.54361342]
[1745630671628,7.00102636,1804.2,1803.9,5.54342363]
[1745630672608,4.902,1804.2,1804.0,6.34872773]
[1745630672819,4.905,1804.2,1804.0,6.34866189]
[1745630674430,4.905,1804.2,1804.0,0.8056]
[1745630675301,4.905,1804.2,1804.0,6.34883677]
[1745630675731,4.905,1804.2,1804.0,0.8056]
[1745630676735,5.7167,1804.2,1803.9,5.54330817]
[1745630677301,4.905,1804.2,1803.9,5.54330817]
[1745630678436,4.905,1804.2,1803.9,6.34200817]
[1745630679238,4.905,1804.2,1803.9,11.8853159]
[1745630679406,4.905,1804.2,1803.9,6.34200773]
[1745630680119,4.905,1804.2,1804.0,5.54308805]
[1745630680429,4.905,1804.2,1803.9,6.34206067]
[1745630681143,4.905,1804.2,1804.0,5.54322587]
[1745630681436,4.905,1804.6,1804.4,5.54196862]
[1745630681851,4.905,1804.6,1804.3,6.34086042]
[1745630682339,4.905,1804.6,1804.5,5.5417013]
[1745630682540,2.66995173,1805.2,1804.7,6.33978716]
[1745630682704,4.905,1804.9,1804.8,5.54058069]
[1745630683841,4.905,1804.9,1804.7,6.33960296]
[1745630684010,4.905,1804.9,1804.7,11.88049251]
[1745630684340,4.905,1804.9,1804.7,6.33958955]
[1745630684519,4.905,1804.9,1804.7,11.88047016]
[1745630684714,4.905,1804.9,1804.7,6.33958061]
[1745630685106,4.905,1804.9,1804.7,11.88043536]
[1745630685511,4.905,1804.9,1804.7,11.88040146]
[1745630685710,4.905,1804.9,1804.7,11.88043028]
[1745630686842,4.905,1804.9,1804.8,5.54078014]
[1745630687650,4.905,1804.9,1804.7,6.33963372]
[1745630688011,4.905,1804.9,1804.7,11.88049246]
[1745630688444,4.905,1804.9,1804.7,11.88041568]
[1745630688642,4.905,1804.9,1804.7,11.88044412]
[1745630689049,4.905,1804.9,1804.8,5.54078014]
[1745630689752,4.905,1804.9,1804.7,6.33960755]
[1745630690747,4.905,1804.9,1804.7,11.88048702]
[1745630691044,4.905,1804.9,1804.7,11.88043532]
[1745630691218,4.905,1804.9,1804.7,6.33955585]
[1745630691420,4.905,1804.9,1804.8,5.54078014]
[1745630704053,4.905,1804.9,1804.8,0.554]
[1745630704353,5.3955,1804.9,1804.6,5.54112424]
[1745630704748,5.3955,1804.9,1804.6,11.08231492]
[1745630705331,5.3955,1804.9,1804.7,5.54096853]
[1745630705963,5.3955,1804.9,1804.6,5.54112424]
[1745630706167,5.3955,1804.9,1804.6,11.08232086]
[1745630706462,5.3955,1804.9,1804.7,5.54104404]
[1745630707561,5.3955,1804.9,1804.6,5.54112424]
[1745630707865,5.3955,1804.9,1804.7,5.54107659]
[1745630709334,5.3955,1804.9,1804.6,11.08236247]
[1745630709667,5.3955,1804.9,1804.7,5.54095831]
[1745630710572,5.3955,1804.9,1804.7,11.08183486]
[1745630710742,5.3955,1804.9,1804.7,5.54087655]
[1745630710939,1.31965,1804.8,1804.4,5.54189709]
[1745630711142,1.31965,1804.8,1804.6,5.54129148]
[1745630711543,1.31965,1804.8,1804.4,11.08381631]
[1745630711732,1.31965,1804.8,1804.6,5.54139348]
[1745630712360,1.31965,1804.8,1804.6,5.541194]
[1745630712661,4.905,1804.9,1804.8,5.54078014]